Cogmind - Beta 16 --- EXPLORER MODE // 2025.12.15 @ 16:54:18 Player: K.K.Y. Result: Destroyed by 1Y-HK5(R) with Subdweller Machine Gun Performance ------------- Evolutions (0) 0 Regions Visited (3) 600 Robots Destroyed (38) 190 Value Destroyed (873) 873 Prototype IDs (13) 260 Alien Tech Used (0) 0 Bonus (37) 37 TOTAL SCORE: 1960 Bonus ------- Follower Combat Kills 37 Cogmind --------- Core Integrity 0/250 Matter 224/300 Energy 243/250 System Corruption 1% Temperature Cool (0) Movement Hovering (77) Location -10/Subcaves Parts ------- > --- POWER (1) -------- Ion Engine > --- PROPULSION (3) --- Combat Airjet Combat Airjet > --- UTILITY (2) ------ Weight Redist. System Makeshift Light Armor Plating > --- WEAPON (2) ------- Improved Medium Laser Barrage Gun > --- INVENTORY (5) ---- Huge Storage Unit Improved Terrain Scanner Improved Medium Laser Plasma Cutter Peak State ------------ > --- POWER ------------ Ion Engine > --- PROPULSION ------- Combat Airjet Combat Airjet Combat Airjet > --- UTILITY ---------- Weight Redist. System Makeshift Light Armor Plating > --- WEAPON ----------- Beamcaster Slug Cannon > --- INVENTORY -------- Huge Storage Unit Improved Terrain Scanner Improved Medium Laser Improved Medium Laser Plasma Cutter [Rating: 32] Favorites ----------- Power Ion Engine Engine Ion Engine Propulsion Combat Airjet Wheel Wheel Hover Unit Combat Airjet Utility Weight Redist. System Device Weight Redist. System Storage High-capacity Storage Unit Processor Targeting Computer Protection Improved Light Armor Plating Weapon Improved Medium Laser Energy Gun Improved Medium Laser Ballistic Gun Barrage Gun Ballistic Cannon Slug Cannon Special Weapon Mining Laser Build | -11 -10 -10 -10 ------- Run | Yrd Mat Min Sub Slots Evolved 1 | . 1 . . Power . | . . . . Propulsion 1 | . 1 . . Utility . | . . . . Weapon . | . . . . Parts Attached 27 | 5 11 4 7 Power 2 | . 2 . . Engine 2 | . 2 . . Core . | . . . . Reactor . | . . . . Propulsion 9 | 2 4 3 . Treads . | . . . . Leg . | . . . . Wheel 2 | 2 . . . Hover 7 | . 4 3 . Flight . | . . . . Utility 9 | 2 3 1 3 Device 1 | . 1 . . Storage 3 | . 2 . 1 Processor 2 | 2 . . . Hackware . | . . . . Protection 3 | . . 1 2 Artifact . | . . . . Weapon 7 | 1 2 . 4 Energy Gun 4 | 1 2 . 1 Energy Cannon . | . . . . Ballistic Gun 1 | . . . 1 Ballistic Cannon 1 | . . . 1 Launcher . | . . . . Special Weapon 1 | . . . 1 Impact Weapon . | . . . . Slashing Weapon . | . . . . Piercing Weapon . | . . . . Special Melee Weapon . | . . . . Unidentified Prototypes 1 | . 1 . . Parts Lost 6 | . 1 1 4 Power . | . . . . Propulsion 3 | . 1 1 1 Utility . | . . . . Weapon 3 | . . . 3 Highest Loss Streak 1 | . 1 1 1 To Critical Strikes . | . . . . Average Backups 4 | 1 3 5 4 Power . | . . . . Propulsion . | . . . . Utility 1 | . 1 2 2 Weapon 1 | . 1 2 1 Tool/Special . | . . . . Unused Backups 4 | . 1 . 3 Power . | . . . . Propulsion 1 | . 1 . . Utility 1 | . . . 1 Weapon 1 | . . . 1 Tool/Special 1 | . . . 1 Average Slot Usage (%) 93 | . 76 97 95 Engine 11 | . 8 12 12 Hover 33 | . 30 36 33 Device 11 | . 9 12 12 Protection 9 | . . 9 11 Energy Gun 16 | . 18 25 13 Ballistic Gun 1 | . . . 1 Ballistic Cannon 2 | . . . 4 Special Weapon 2 | . . . 3 Peak Build Rating 32 | 5 17 28 32 Average Rating 24 | 3 11 25 27 On Entrance 12 | . 5 16 28 Avg Prop Armor Cover (%) . | . . . . Naked Turns . | . . . . Heaviest Build 21 | 1 11 14 21 Greatest Support 42 | 20 27 36 42 Greatest Overweight (x) . | . . . . Average Overweight (x) . | . . . . Largest Inventory Capacity 25 | 5 25 5 25 Average Capacity 5 | 5 5 5 5 Most Carried 5 | 4 5 5 5 Average Carried 4 | 1 3 5 4 Final Capacity 5 | 5 5 5 5 Final Carried 5 | 3 5 5 4 Class Distribution -------------------- 57% | Hacker-Mutant 42% | Scavenger-Mutant Dominant Class ---------------- Hacker-Mutant | -10/Materials Scavenger-Mutant | -10/Mines Hacker-Mutant | -10/Subcaves Resources | -11 -10 -10 -10 ----------- Run | Yrd Mat Min Sub Matter Collected 845 | 198 147 67 433 Remotely . | . . . . Salvage Created 1202 | 160 294 259 489 Parts 71 | 16 18 9 28 Haulers Intercepted 1 | . 1 . . Recyclers Shooed . | . . . . Parts Field Recycled . | . . . . Retrieved Matter . | . . . . Parts Self-Destructed . | . . . . Prevented . | . . . . Parts Restored . | . . . . Kills | -11 -10 -10 -10 ------- Run | Yrd Mat Min Sub Combat Hostiles Destroyed 28 | . 7 6 15 Guns 25 | . 7 5 13 Cannons 2 | . . . 2 Classes Destroyed 10 | 2 4 1 3 Tunneler 5 | 4 . 1 . Hauler 1 | . 1 . . Recycler 1 | 1 . . . Turret 1 | . . . 1 Watcher 3 | . 3 . . Swarmer 11 | . 4 3 4 Grunt 7 | . 3 2 2 Sentry 1 | . . . 1 Subdweller 8 | . . . 8 Assembled 1 | . . 1 . Best Kill Streak 5 | 3 4 2 5 Combat Bots Only 4 | . 2 2 4 Max Kills in Single Turn 2 | 1 1 2 1 Gunslinging 1 | . . 1 . Exploded . | . . . . Melee . | . . . . Uniques/NPCs Destroyed . | . . . . Combat | -11 -10 -10 -10 -------- Run | Yrd Mat Min Sub Hostile Shots Fired 171 | . 50 10 111 Missed 61 | . 20 4 37 Hits 110 | . 30 6 74 Projectile 110 | . 30 6 74 AOE 4 | . . 4 . Critical Strikes 4 | . 1 . 3 Damage Taken 1104 | . 223 87 794 Core 257 | . 36 16 205 Absorbed by Shields . | . . . . Ignored by Resistances 645 | . 143 54 448 Core Remaining (%) 100 | 100 . . . Volleys Fired 181 | 16 49 18 98 Largest 2 | 1 2 2 2 Hottest 156 | 40 112 112 156 Shots Fired 282 | 16 60 32 174 Gun 217 | 16 60 32 109 Cannon 50 | . . . 50 Launcher . | . . . . Special 15 | . . . 15 Kinetic 73 | . . . 73 Thermal 209 | 16 60 32 101 Explosive . | . . . . Electromagnetic . | . . . . Robot Hit Streak 58 | 16 39 10 58 Robot Miss Streak 4 | . 3 2 4 Penetration Max . | . . . . Secondary Targets 1 | . . 1 . Max Gunslinging Chain 1 | . . 1 . Shots Hit Robots 164 | 16 48 23 77 Core Hits 61 | 6 15 16 24 Critical Kills 1 | . . . 1 Critical Parts Destroyed 2 | . . . 2 Critical Strikes 13 | . . 4 9 Burn 9 | . . 4 5 Destroy 4 | . . . 4 Melee Attacks . | . . . . Impact . | . . . . Slashing . | . . . . Piercing . | . . . . Sneak Attacks . | . . . . Combat Hostiles . | . . . . Follow-up Attacks . | . . . . Damage Inflicted 2625 | 172 611 406 1436 Guns 2015 | 172 611 406 826 Cannons 610 | . . . 610 Explosions . | . . . . Melee . | . . . . Ramming . | . . . . Kinetic 715 | . . . 715 Thermal 1910 | 172 611 406 721 Explosive . | . . . . Electromagnetic . | . . . . Impact . | . . . . Slashing . | . . . . Piercing . | . . . . Highest Corruption 1 | . 1 1 1 Average Corruption 1 | . 1 1 1 Corruption Purged . | . . . . Corruption Blocked . | . . . . Effects 22 | . . 7 15 Message Errors 2 | . . 1 1 Matter Fused 4 | . . 1 3 Heat Flow Errors 3 | . . 1 2 Energy Discharges 4 | . . 1 3 Parts Fused 1 | . . . 1 Data Loss (minor) 4 | . . 2 2 Data Loss (major) 2 | . . 1 1 Misfires 1 | . . . 1 Alerts 1 | . . . 1 Overload Shots . | . . . . Overflow Damage 3 | . . . 3 Projectiles 3 | . . . 3 Explosions . | . . . . Melee . | . . . . Knockbacks 9 | . . . 9 Impact . | . . . . Kinetic 8 | . . . 8 Secondary 1 | . . . 1 Self-Inflicted Damage . | . . . . Shots . | . . . . Rammed . | . . . . Targets Rammed . | . . . . Kicked . | . . . . Crushed . | . . . . Highest Temperature 321 | 15 183 321 248 Average Temperature 79 | 12 47 132 66 Received Heat Transfer 441 | . 165 36 240 Effects 4 | . . 4 . Energy Bleed 1 | . . 1 . Interference 3 | . . 3 . Siege Activations . | . . . . Martial Activations . | . . . . Shielding Activations . | . . . . Robots Disrupted . | . . . . Combat Hostiles . | . . . . Robots Corrupted . | . . . . Combat Hostiles . | . . . . Parts Fried . | . . . . Impact Corruptions . | . . . . Robots Melted 1 | . . 1 . Combat Hostiles 1 | . . 1 . Parts Melted 4 | . 1 2 1 Heat Transferred 4716 | 400 1356 1184 1776 Parts Sabotaged . | . . . . Parts Stolen . | . . . . Parts Stripped . | . . . . Power Chain Reactions . | . . . . Alert | -11 -10 -10 -10 ------- Run | Yrd Mat Min Sub Maximum Alert Level . | . . . . Low Security (%) 100 | 100 100 100 . Level 1 . | . . . . Level 2 . | . . . . Level 3 . | . . . . Level 4 . | . . . . Level 5 . | . . . . High Security . | . . . . Max Security . | . . . . Peak Influence 56 | 10 50 56 . Initial 5 | . 4 5 . Average 8 | 2 11 7 . Influence Increases 685 | 25 199 201 260 Destroy 0b10 Robot/C 420 | . 140 120 160 Destroy 0b10 Robot/NC 50 | 25 20 5 . Destroy Leader 78 | . 38 30 10 Allied During Kill 1 | . . 1 . Destroy Structure 1 | . 1 . . Lose Combat Pursuer 135 | . . 45 90 Influence Decreases 685 | 15 190 220 260 Entered New Map 20 | . 6 14 . Time Decay 635 | 15 184 196 240 Lost Part 30 | . . 10 20 Squads Dispatched . | . . . . Investigation . | . . . . Extermination . | . . . . Reinforcement . | . . . . Assault . | . . . . Garrison . | . . . . Intercept . | . . . . Searches Triggered . | . . . . Construction Impeded . | . . . . Haulers Reinforced . | . . . . Active Scanning Responses . | . . . . Cargo Convoy Interrupts . | . . . . Stealth | -11 -10 -10 -10 --------- Run | Yrd Mat Min Sub Distress Signals 1 | . 1 . . Communications Jammed . | . . . . Distress Signals . | . . . . Times Spotted 63 | . 13 26 24 Peak Tracking Total 20 | . 2 20 6 Tactical Retreats 8 | . . 3 5 Traps | -11 -10 -10 -10 ------- Run | Yrd Mat Min Sub Traps Triggered 4 | . 1 . 3 Indirectly . | . . . . Trap Hack Attempts . | . . . . Triggered . | . . . . Disarmed . | . . . . Reprogrammed . | . . . . Reused . | . . . . Traps Extracted . | . . . . Installed . | . . . . Triggered . | . . . . Machines | -11 -10 -10 -10 ---------- Run | Yrd Mat Min Sub Machines Disabled 2 | . . . 2 Max in Single Turn 1 | . . . 1 Machines Repaired . | . . . . Machines Dismantled . | . . . . Machines Sabotaged . | . . . . Overloaded Fab Kills . | . . . . Hacking | -11 -10 -10 -10 --------- Run | Yrd Mat Min Sub Machines Accessed 2 | . . . 2 Terminals . | . . . . Fabricators . | . . . . Repair Stations . | . . . . Recycling Units . | . . . . Scanalyzers . | . . . . Garrison Access . | . . . . Total Hacks 6 | . . . 6 Successful 6 | . . . 6 Failed . | . . . . Catastrophic . | . . . . Database Lockouts . | . . . . Manual . | . . . . Terminals . | . . . . Fabricators . | . . . . Repair Stations . | . . . . Recycling Units . | . . . . Scanalyzers . | . . . . Garrison Access . | . . . . Terminal Hacks 6 | . . . 6 Record 5 | . . . 5 Proto ID Catalog 1 | . . . 1 Fabricator Hacks . | . . . . Repair Station Hacks . | . . . . Recycling Unit Hacks . | . . . . Scanalyzer . | . . . . Garrison Access Hacks . | . . . . Unauthorized Hacks . | . . . . Terminals . | . . . . Fabricators . | . . . . Repair Stations . | . . . . Recycling Units . | . . . . Scanalyzers . | . . . . Garrison Access . | . . . . Data Cores Recovered . | . . . . Used . | . . . . Hacking Detections . | . . . . Full Trace Events . | . . . . Feedback Events . | . . . . Feedback Blocked . | . . . . Robot Schematics Acquired . | . . . . Robots Built . | . . . . Authchips . | . . . . Time . | . . . . Total Robot Build Rating . | . . . . Part Schematics Acquired . | . . . . Parts Built . | . . . . Authchips . | . . . . Time . | . . . . Total Part Build Rating . | . . . . Part Studies Acquired . | . . . . Parts Repaired . | . . . . Time . | . . . . Parts Recycled . | . . . . Recycled Matter . | . . . . Retrieved Matter . | . . . . Retrieved Components . | . . . . Parts Scanalyzed . | . . . . Part Schematics Acquired . | . . . . Parts Damaged . | . . . . Bothacking | -11 -10 -10 -10 ------------ Run | Yrd Mat Min Sub Used RIF Installer . | . . . . Robots Hacked . | . . . . Non-combat . | . . . . Combat . | . . . . Robot Hacks Applied . | . . . . Relay Couplers Released . | . . . . Fabnet Peak Effective % . | . . . . Robots Rewired . | . . . . Allies Hacked . | . . . . Hacks Repelled . | . . . . Allies | -11 -10 -10 -10 -------- Run | Yrd Mat Min Sub Total Allies 2 | . . 2 . Largest Group 2 | . . 2 2 Highest-Rated Group 45 | . . 45 45 Highest-Rated Ally 31 | . . 31 31 Total Orders . | . . . . Ally Attacks 14 | . . 5 9 Total Damage 193 | . . 21 172 Kills 2 | . . 1 1 Allies Corrupted . | . . . . Allies Melted . | . . . . Intel | -11 -10 -10 -10 ------- Run | Yrd Mat Min Sub Active Infowar (turns) . | . . . . Robot Analysis Total . | . . . . Derelict Logs Recovered 2 | . . . 2 Drone Launches . | . . . . Drone Recoveries . | . . . . Exploration | -11 -10 -10 -10 ------------- Run | Yrd Mat Min Sub Turns Passed 3124 | 79 457 639 1949 Spaces Moved 3266 | 44 447 619 2156 Core 27 | 27 . . . Treads . | . . . . Legs . | . . . . Wheels 76 | 17 59 . . Hover 3163 | . 388 619 2156 Flight . | . . . . Fastest Speed 50 | 50 52 52 74 Average Speed 71 | 61 55 71 74 Slowest Speed 80 | 80 80 74 77 Overloaded Moves . | . . . . Propulsion Burnouts . | . . . . Robots Hopped . | . . . . Potential Cave-ins . | . . . . Cave-ins Triggered . | . . . . Exploration Rate (%) 67 | 4 76 97 92 Regions Visited 3 Branch Regions 2 Pre-discovered Areas 1 | . . . 1 Known Exits Taken 3 | 1 1 1 . Unknown Exits Taken . | . . . . Scrap Searched 13 | . . . 13 Spaces Dug . | . . . . Terrain Destroyed 6 | . . . 6 Melee . | . . . . Projectile 6 | . . . 6 AOE . | . . . . Terrain Rammed . | . . . . Walls Destroyed . | . . . . Machines Disabled . | . . . . Actions | -11 -10 -10 -10 --------- Run | Yrd Mat Min Sub Total 3749 | 79 597 784 2289 Wait 236 | 7 72 140 17 Move 3263 | 43 446 618 2156 Hop . | . . . . Pick Up 16 | 8 7 . 1 Fast Attach 11 | . 5 2 4 Attach 12 | 5 5 . 2 Detach 6 | . 6 . . Swap 9 | . 1 3 5 Drop 15 | . 6 3 6 Fire 181 | 16 49 18 98 Melee . | . . . . Ram . | . . . . Kick . | . . . . Crush . | . . . . Escape Stasis . | . . . . Rewire . | . . . . Trap . | . . . . Miscellaneous . | . . . . Route ------- -11/Scrapyard -10/Materials (discovered 2 exits: *Mat / *Min) -10/Mines (discovered 3 exits: *Mat x2 / *Sub) -10/Subcaves (discovered 3 exits: *Mat x2 / *Rec) History --------- Turn | Location | Event 9 | -11/Scrapyard | Identified exit to Materials 9 | -11/Scrapyard | Discovered exit to Materials (range 16) 80 | -11/Scrapyard | Entered Materials 80 | -10/Materials | Evolved 1 slot: Propulsion x1 311 | -10/Materials | Build established: Hacker-Mutant 377 | -10/Materials | Identified exit to Materials 377 | -10/Materials | Discovered exit to Materials (range 8) 534 | -10/Materials | Identified exit to Mines 534 | -10/Materials | Discovered exit to Mines (range 6) 537 | -10/Materials | Entered Mines 538 | -10/Mines | Assembled infested the area 569 | -10/Mines | Met 8R-AWN 751 | -10/Mines | Discovered exit to Materials (range 11) 905 | -10/Mines | Joined a pair of Derelicts in attacking an 0b10 outpost 938 | -10/Mines | Build established: Scavenger-Mutant 1056 | -10/Mines | Discovered exit to Materials (range 9) 1127 | -10/Mines | Identified exit to Subcaves 1127 | -10/Mines | Discovered exit to Subcaves (range 6) 1176 | -10/Mines | Entered Subcaves 1176 | -10/Subcaves | Accompanied by 2 allies 1178 | -10/Subcaves | Learned Materials stockpile data 1187 | -10/Subcaves | Led the pair of lost Derelicts to an unsafe place 1664 | -10/Subcaves | Visited 4L-MR0's lab 2132 | -10/Subcaves | Identified exit to Materials 2132 | -10/Subcaves | Discovered exit to Materials (range 11) 2169 | -10/Subcaves | Disturbed a concealed Subdweller 2213 | -10/Subcaves | Build established: Hacker-Mutant 2223 | -10/Subcaves | Core integrity fell below 50% 2294 | -10/Subcaves | Shifting Twisted Machinery released Mak. Kinetic Plating 2335 | -10/Subcaves | Shifting Twisted Machinery released Sub. Monowheel 2349 | -10/Subcaves | Learned location of Zion (-7) 2349 | -10/Subcaves | Met a Zionite searching for "candidates" 2388 | -10/Subcaves | Discovered exit to Materials (range 14) 2407 | -10/Subcaves | Visited Clippyterm 2409 | -10/Subcaves | Learned Research security intel 2409 | -10/Subcaves | Learned 40 Factory zone layouts 2434 | -10/Subcaves | Identified exit to Recycling 2434 | -10/Subcaves | Discovered exit to Recycling (range 11) 2490 | -10/Subcaves | Shifting Twisted Machinery released Sub. Power Source 2505 | -10/Subcaves | Shifting Twisted Machinery released Scrap Shield 2583 | -10/Subcaves | Core integrity fell below 20% 3063 | -10/Subcaves | Shifting Twisted Machinery released Mak. Light Armor Plating 3081 | -10/Subcaves | Shifting Twisted Machinery released Sub. Monowheel 3125 | -10/Subcaves | Destroyed by 1Y-HK5(R) with Subdweller Machine Gun Last Messages --------------- 02831_ Slug Cannon destroyed. 02832_ System corrupted: Energy discharge (-80). 02836_ MJ-8MG(R) affixes Scrap Shield Fragment to Scrap Shield. 02836_ Acquired 3 matter. 02837_ MJ-8MG(R) destroyed. 02839_ Acquired 2 matter. 02841_ Acquired 31 matter. 02842_ Acquired 36 matter. 02844_ Acquired Barrage Gun. 02987_ Critical hit (Burn: +37). 02989_ G-47 Trooper destroyed. 02992_ Beamcaster destroyed. 02999_ G-34 Mercenary destroyed. 03002_ Acquired 46 matter. Mak. Light Armor Plating falls loose from the Twisted Machinery. 03072_ Dropped Mak. Light Armor Plating. Sub. Monowheel falls loose from the Twisted Machinery. Map ----- +----------------------------------------------------+ | | | | | | | | | | | ?????????????????????????????????????????????????? | | ?????????????????????????????????????????????????? | | ?????????????????????????????????????????????????? | | ?????????????????????????????????????????????????? | | ?????????????????????????????????????????????????? | | ?????????????????????????????????????????????????? | | ?????????????????????????????????????????????????? | | ?????????????????????????????????????????????????? | | ?????????????????????????????????????????????????? | | ?????????????????????????????????????????????????? | | ?????????????????????????????????????????????????? | | ?????????????????????????????????????????????????? | | ?????????????????????????????????????????????????? | | ?????????????????????????????????????????????????? | | ????????????????????????????????????????????####?? | | ?????????????????#?????####????????????###?## ##? | | ?????????????### " ???##" ##???????????# ###""""## | | ????????????? " ### """????????????# = # | | ????????????? " ""####???????## """" | | ?????????????? ## "####??### """ | | ???????????????? """R@"""""" #### ##### """ | | ?????????????????## """R "" " ##???## """ | | ??????????????????###"""" # "" #?????## "" | | ????????????????????##""" #### #####??????## " | | ?????????????????????### "#??## #???????????## | | ???????????????????????####???######????????????## | | ???????????????????????????????????????????????### | | ?????????????????????????????????????????????### | | ?????????????????????????????????????????????# | | ?????????????????????????????????????????????# | | ?????????????????????????????????????????????## # | | ??????????????????????????????????????????????# # | | ?????????????????????????????????????????????## | | ?????????????????????????????????????????????# # | | ?????????????????????????????????????????????# | | ?????????????????????????????????????????????## | | ??????????????????????????????????????????????# | | ??????????????????????????????????????????????# | | ??????????????????????????????????????????????# | | ??????????????????????????????????????????????# | | ???????????????????????????####??????????????## | | ??????????????????????###### ##?????????????# | | ??????????????????????#"""### ##?####????####### | | ??????????????????????#"" ## ### ######>##### | | ??????????????????????#"X #"""" "" "# | +----------------------------------------------------+ Best States ------------- Heat Dissipation 25 Energy Generation 10 Energy Capacity 250 Matter Stores 300 Matter Capacity 300 Sight Range 16 Terrain Scan Density 10 Additional Mass Support 6 Armor Coverage 150 Resistance: KI 35 Resistance: TH 35 Resistance: EX 35 Resistance: EM 35 Resistance: I 35 Resistance: S 35 Resistance: P 35 Evasion (%) 54 Targeting Accuracy 10 Offensive Hacking 20 Item Schematics ----------------- None Robot Schematics ------------------ None Fabricated ------------ Nothing Repaired ---------- Nothing Studied --------- None Alien Tech Used ----------------- None Achievements -------------- None Challenges ------------ None Game ------ Seed AlloyPlexusMinigun Manual? 0 Play Time 00:22:29 Cumulative 199.6 hours Start 2025.12.15 @ 16:33:53 End 2025.12.15 @ 16:54:18 Sessions 1 Manual Loads 0 Difficulty Explorer Special Mode None Game No. 300 Rogue 0 Adventurer 0 Explorer 300 Win Type - Total 0 Types 0/0/0/0/0/0/0/0/0/0 Lore% 71 Gallery% 67 Achievement% 53 Wizard Run 0 Options --------- Layout 1 ASCII 0 Keyboard 0 Movement Mouse Keybinds 0 Fullscreen 1 Font 24/Smallcaps Map View 50x35 Zoom Use 0% Tactical HUD 1 Map Filters NONE Filters NONE Steam 1 RUN: eb31e1fa-c714-4969-8235-bb056eef3180